fUSD/lending_fUSD_20260122
["ID","MTS","AMOUNT","RATE_DAILY","PERIOD"]
[403000823,1769040633821,-250.0,0.00017,2]
[403000825,1769040633831,-212.276,0.0001783,8]
[403000827,1769040633840,-150.00148471,0.0001783,2]
[403000829,1769040633850,-151.0,0.00018534,2]
[403000831,1769040633860,-597.0,0.000196,2]
[403000833,1769040633870,-192.0,0.0002,2]
[403000835,1769040633879,-107.51092591,0.0002,2]
[403000837,1769040633891,-42.48907409,0.0002,2]
[403000839,1769040633904,-150.0,0.0002,2]
[403000841,1769040633914,-195.71302726,0.0002,2]
[403000842,1769040633923,-200.19,0.000205,7]
[403000843,1769040633935,-164.91149865,0.00022027,2]
[403000854,1769040634173,-335.08850135,0.00022027,2]
[403000856,1769040634183,-250.0,0.00022463,2]
[403000858,1769040634194,-541.52562448,0.00022986,2]
[403000862,1769040634206,-658.47437552,0.00022986,2]
[403000865,1769040634216,-300.0,0.00022986,2]
[403000867,1769040634225,-535.0,0.00022987,2]
[403000869,1769040634236,-9226.45,0.00022988,2]
[403000871,1769040634245,-150.99,0.00022988,2]
[403000873,1769040634255,-362.7193348,0.00022988,2]
[403000876,1769040634273,-4933.54206172,0.00022988,2]
[403000879,1769040634285,-938.57,0.00022988,2]
[403000881,1769040634301,-483.60999621,0.00022988,2]
[403000918,1769040638262,-3281.54860727,0.00022988,2]
[403000919,1769040638272,-200.0,0.00023,2]
[403000920,1769040638281,-57.95846713,0.00023685,2]
[403000921,1769040638295,-1260.04153287,0.00023685,2]
[403000922,1769040638304,-277.0,0.0002382,2]
[403000923,1769040638314,-200.0,0.00025,2]
[403000924,1769040638324,-183.37435585,0.00025091,2]
[403000925,1769040638333,-1027.39155131,0.00025176,2]
[403000926,1769040638515,-748.26893567,0.00025176,2]
[403000927,1769040638527,-49.33951302,0.00025176,2]
[403000928,1769040638537,-190.01360145,0.00025227,2]
[403000930,1769040638547,-150.00148471,0.00025478,27]
[403000932,1769040638556,-819.81394444,0.00025983,2]
[403000934,1769040638568,-5831.94605556,0.00025983,2]
[403000936,1769040638577,-150.00148471,0.00026753,31]
[403000938,1769040638587,-561.0,0.000271,5]
[403000940,1769040638596,-150.00148471,0.00028027,34]
[403000941,1769040638605,-206.45,0.00028629,5]
[403000943,1769040638616,-747.73,0.00028646,120]
[403000944,1769040638625,-518.45,0.00028652,2]
[403000946,1769040638635,-518.45,0.00028727,2]
[403000948,1769040638644,-172.95,0.00028801,2]
[403000950,1769040638654,-518.45,0.00028803,2]
[403000952,1769040638664,-518.45,0.00028878,2]
[403000954,1769040638673,-518.45,0.00028954,2]
[403000956,1769040638683,-518.45,0.00029029,2]
[403000958,1769040638694,-518.45,0.00029104,2]
[403000960,1769040638703,-518.45,0.0002918,2]
[403000962,1769040638713,-518.45,0.00029255,2]
[403000964,1769040638722,-500.0,0.00029287,20]
[403000966,1769040638732,-839.37435353,0.000293,2]
[403000968,1769040638744,-1160.62564647,0.000293,2]
[403000970,1769040638753,-150.00148471,0.00029302,38]
[403000972,1769040638763,-300.89122882,0.00029331,2]
[403000975,1769040638774,-217.55877118,0.00029331,2]
[403000977,1769040638784,-518.45,0.00029406,2]
[403000978,1769040638794,-1037.15122882,0.00029444,2]
[403000981,1769040638809,-1185.97986445,0.00029444,2]
[403000983,1769040638821,-530.05011995,0.00029444,2]
[403001125,1769040640437,-588.00932753,0.00029444,2]
[403001713,1769040646152,-1383.11945925,0.00029444,2]
[403001716,1769040646162,-518.45,0.00029481,2]
[403001718,1769040646172,-444.9806641,0.00029557,2]
[403001722,1769040646203,-73.4693359,0.00029557,2]
[403001724,1769040646213,-518.45,0.00029632,2]
[403001726,1769040646222,-200.0,0.00029654,2]
[403001728,1769040646232,-518.45,0.00029708,2]
[403001730,1769040646240,-367.3516641,0.00029783,2]
[403001732,1769040646252,-151.0983359,0.00029783,2]
[403001734,1769040646262,-518.45,0.00029858,2]
[403001736,1769040646272,-26.51878879,0.00029934,2]
[403001758,1769040646470,-491.93121121,0.00029934,2]
[403001760,1769040646480,-404.62878879,0.00030009,2]
[403002450,1769041700727,-250.0,0.00017,2]
[403002451,1769041700756,-150.00062981,0.00017999,2]
[403002452,1769041701021,-500.0,0.00017999,2]
[403002453,1769041701051,-468.24878922,0.00017999,2]
[403002454,1769041701083,-500.0,0.00017999,2]
[403002455,1769041701112,-500.0,0.00017999,2]
[403002456,1769041701145,-258.1155331,0.00017999,2]
[403002457,1769041701173,-491813.44882554,0.00018,2]
[403002458,1769041701203,-397375.75260504,0.00018,2]
[403002466,1769041832469,-185.24,0.0001789,2]
[403002467,1769041832479,-185.24,0.0001789,2]
[403002468,1769041832489,-185.24,0.0001789,2]
[403002469,1769041832498,-185.24,0.0001789,2]
[403002470,1769041832508,-165.17,0.0001789,2]
[403002471,1769041832518,-500.0,0.00017899,2]
[403002472,1769041832527,-303.92433599,0.00017899,2]
[403002474,1769041832537,-177.46773555,0.00017899,2]
[403002475,1769041832566,-272.53226445,0.00017899,2]
[403002476,1769041832575,-500.0,0.00017899,2]
[403002478,1769041832585,-166.92902837,0.00017899,2]
[403002480,1769041832594,-301.60245174,0.00017899,2]
[403002482,1769041832603,-150.0,0.000179,2]
[403002484,1769041832612,-4034.52107114,0.000179,2]
[403002485,1769041832623,-10749.43756616,0.000179,2]
[403002488,1769041838410,-19987.77177148,0.000179,2]
[403002489,1769041838422,-478.95997779,0.000179,2]
[403002490,1769041838482,-2253.09560657,0.000179,2]
[403002501,1769041840653,-185790.47483915,0.000179,2]
[403002502,1769041840701,-32343.65364383,0.000179,2]
[403002503,1769041840714,-449.495,0.000179,2]
[403002504,1769041840755,-386.49005528,0.000179,2]
[403002505,1769041840765,-1219.4810845,0.000179,2]
[403002506,1769041840872,-779.1615893,0.000179,2]
[403002527,1769041843381,-344.63499176,0.000179,2]
[403002528,1769041843431,-2511.8867267,0.000179,2]
[403002529,1769041843443,-557.96001026,0.000179,2]
[403002530,1769041843484,-1821.82014999,0.000179,2]
[403002531,1769041843632,-18817.53595143,0.000179,2]
[403002532,1769041843700,-424.00898094,0.000179,2]
[403002533,1769041843717,-467494.9804745,0.000179,2]
[403002539,1769041844495,-13634.60820723,0.000179,2]
[403002540,1769041844508,-4441.23959371,0.000179,2]
[403002541,1769041846358,-500.0,0.00017899,2]
[403002542,1769041846368,-276.38570756,0.00017899,2]
[403002543,1769041846378,-500.0,0.00017899,2]
[403002544,1769041846387,-209.15678397,0.00017899,2]
[403002545,1769041846397,-601.73248257,0.00017899,2]
[403002546,1769041846407,-500.0,0.00017899,2]
[403002547,1769041846416,-500.0,0.00017899,2]
[403002548,1769041846426,-500.0,0.00017899,2]
[403002549,1769041846437,-500.0,0.00017899,2]
[403002550,1769041846448,-500.0,0.00017899,2]
[403002551,1769041846458,-135395.17480828,0.000179,2]
[403002552,1769041846467,-174.705606,0.000179,5]
[403002553,1769041846477,-7169.03104957,0.000186,2]
[403002554,1769041846487,-250.0,0.000187,2]
[403002555,1769041846501,-150.14205122,0.000187,2]
[403002556,1769041846512,-300.0,0.00019,2]
[403002557,1769041846525,-500.0,0.00019178,2]
[403002558,1769041846535,-582.05362483,0.00019178,2]
[403002559,1769041846545,-500.0,0.00019178,2]
[403002560,1769041846555,-500.0,0.00019178,2]
[403002561,1769041846565,-500.0,0.00019178,2]
[403002562,1769041846575,-500.0,0.00019178,2]
[403002563,1769041846585,-500.0,0.00019178,2]
[403002564,1769041846596,-500.0,0.00019178,2]
[403002565,1769041846605,-300.0,0.00019178,2]
[403002566,1769041846615,-500.0,0.00019178,2]
[403002567,1769041846625,-500.0,0.00019178,2]
[403002568,1769041846635,-552.0,0.000196,2]
[403002569,1769041846645,-1067.73274922,0.0002,30]
[403002570,1769041846655,-7500.0,0.0002,2]
[403002571,1769041846665,-3950.0,0.0002,2]
[403002572,1769041846676,-1293.66679101,0.0002,2]
[403002573,1769041846685,-1044.25996146,0.0002,2]
[403002574,1769041846695,-2861.70210159,0.0002,2]
[403002576,1769041846705,-12915.32759444,0.0002,2]
[403002578,1769041846716,-152.0,0.0002,2]
[403002579,1769041846725,-8720.0,0.0002001,2]
[403002580,1769041846734,-200.0,0.00020138,2]
[403002581,1769041846744,-350.0,0.00021,2]
[403002582,1769041846754,-7169.03104951,0.00021301,2]
[403002583,1769041846764,-248.78771965,0.00022599,2]
[403002584,1769041846773,-340.5,0.00022888,2]
[403002585,1769041846783,-5193.49,0.00022888,2]
[403002586,1769041846793,-187.43,0.0002349,2]
[403002587,1769041846803,-250.0,0.00023652,2]
[403002588,1769041846812,-194.9,0.00023701,30]
[403002589,1769041846823,-449.45,0.00023835,2]
[403002590,1769041846834,-485.84,0.00023854,2]
[403002591,1769041846844,-7169.03104951,0.00024003,2]
[403002592,1769041846853,-341.86,0.00024128,2]
[403002593,1769041846864,-16495.3882911,0.000248,2]
[403002594,1769041846878,-176.72,0.00024946,2]
[403002595,1769041846889,-3024.91153052,0.00025,2]
[403002596,1769041846900,-166.66,0.00026176,30]
[403002597,1769041846911,-7169.03104951,0.00026704,2]
[403002598,1769041846922,-166.66,0.00026727,30]
[403002599,1769041846934,-500.0,0.00027041,2]
[403002600,1769041846945,-166.66,0.00027278,30]
[403002601,1769041846956,-1328.63,0.00027288,2]
[403002602,1769041846965,-500.0,0.00027524,2]
[403002603,1769041846976,-166.66,0.00027829,30]
[403002604,1769041846986,-371.4680675,0.00027878,2]
[403002605,1769041846996,-255.879094,0.00027878,7]
[403002606,1769041847006,-255.879094,0.00027878,7]
[403002607,1769041847016,-255.879094,0.00027878,7]
[403002608,1769041847029,-255.879094,0.00027878,7]
[403002609,1769041847039,-151.0,0.00027878,7]
[403002610,1769041847049,-151.0,0.00027878,7]
[403002611,1769041847059,-308.17,0.000279,7]
[403002612,1769041847069,-698.023853,0.00028,60]
[403002613,1769041847079,-1000.0,0.00028127,2]
[403002614,1769041847089,-150.00062981,0.0002815,35]
[403002615,1769041847100,-2000.0,0.000282,2]
[403002616,1769041847111,-5000.0,0.0002827,2]
[403002617,1769041847122,-1955.16,0.00028346,2]
[403002618,1769041847134,-166.66,0.0002838,30]
[403002619,1769041847143,-194.9,0.00028748,30]
[403002620,1769041847153,-166.66,0.00028931,30]
[403002621,1769041847163,-2188.77,0.00029047,2]
[403002622,1769041847173,-2000.0,0.000293,2]
[403002623,1769041847182,-7169.03104951,0.00029406,2]
[403002624,1769041847192,-172.7,0.00029633,2]
[403002625,1769041847207,-500.0,0.0003,60]
[403002626,1769041847217,-500.0,0.0003,60]
[403002627,1769041847227,-500.0,0.0003,60]
[403002628,1769041847236,-260.10624529,0.00030009,2]
[403002629,1769041847247,-113.82121121,0.00030009,2]
[403002630,1769041847261,-518.45,0.00030085,2]
[403002631,1769041847274,-150.0,0.00030197,2]
[403002632,1769041847284,-2000.0,0.000303,2]
[403002633,1769041847295,-308.17,0.000303,7]
[403002634,1769041847305,-150.00062981,0.00030687,42]
[403002635,1769041847316,-2000.0,0.000313,2]
[403002636,1769041847329,-500.0,0.00031479,2]
[403002637,1769041847338,-500.0,0.00031537,46]
[403002638,1769041847348,-500.0,0.00031537,46]
[403002639,1769041847359,-500.0,0.00031537,46]
[403002640,1769041847368,-150.0,0.00031537,2]
[403002641,1769041847379,-500.0,0.00031537,46]
[403002642,1769041847389,-150.0,0.00031537,46]
[403002643,1769041847398,-150.0,0.00031537,2]
[403002644,1769041847409,-241.0859787,0.00031537,46]
[403002645,1769041847420,-150.0,0.00031537,46]
[403002646,1769041847432,-150.0,0.00031537,46]
[403002647,1769041847442,-150.0,0.00031537,2]
[403002648,1769041847455,-500.0,0.00031537,46]
[403002649,1769041847464,-150.0,0.00031537,2]
[403002650,1769041847475,-150.0,0.00031537,46]
[403002651,1769041847485,-3040.94004035,0.00031547,2]
[403002652,1769041847495,-371.4680675,0.00031558,2]
[403002653,1769041847506,-500.0,0.00031576,2]
[403002654,1769041847516,-500.0,0.00031577,2]
[403002655,1769041847526,-500.0,0.00031578,2]
[403002656,1769041847536,-499.9999,0.00031579,2]
[403002657,1769041847545,-500.0,0.00031592,46]
[403002658,1769041847555,-500.0,0.00031592,46]
[403002659,1769041847566,-500.0,0.00031592,46]
[403002660,1769041847575,-150.0,0.00031592,2]
[403002661,1769041847585,-500.0,0.00031592,46]
[403002662,1769041847595,-150.0,0.00031592,46]
[403002663,1769041847606,-150.0,0.00031592,46]
[403002664,1769041847616,-200.0,0.00031592,46]
[403002665,1769041847625,-588.0,0.00031592,46]
[403002666,1769041847636,-257.1948729,0.00031592,2]
[403002667,1769041847647,-150.0,0.00031592,46]
[403002668,1769041847657,-151.0,0.00031604,31]
[403002669,1769041847667,-151.0,0.00031604,31]
[403002670,1769041847676,-151.0,0.00031604,31]
[403002671,1769041847686,-151.0,0.00031604,31]
[403002672,1769041847695,-151.0,0.00031604,31]
[403002673,1769041847704,-217.470269,0.00031604,31]
[403002674,1769041847714,-151.0,0.00031604,31]
[403002675,1769041847723,-151.0,0.00031604,31]
[403002676,1769041847734,-151.0,0.00031604,31]
[403002677,1769041847744,-151.0,0.00031604,31]
[403002678,1769041847753,-255.879094,0.00031604,31]
[403002679,1769041847762,-255.879094,0.00031604,31]
[403002680,1769041847772,-255.879094,0.00031604,31]
[403002681,1769041847783,-255.879094,0.00031604,31]
[403002682,1769041847794,-151.0,0.00031604,31]
[403002683,1769041847804,-151.0,0.00031604,31]
[403002684,1769041847814,-500.0,0.00031647,46]
[403002685,1769041847824,-500.0,0.00031647,46]
[403002686,1769041847834,-500.0,0.00031647,46]
[403002687,1769041847845,-150.0,0.00031647,2]
[403002688,1769041847856,-500.0,0.00031647,46]
[403002689,1769041847866,-200.0,0.00031647,46]
[403002690,1769041847876,-169.0,0.00031647,46]
[403002691,1769041847886,-164.59,0.00031675,2]
[403002692,1769041847896,-500.0,0.00031701,46]
[403002693,1769041847906,-389.46648054,0.00031701,46]
[403002694,1769041847917,-164.1,0.00031718,120]
[403002695,1769041847926,-3002.22,0.00031753,2]
[403002696,1769041847935,-1000.0,0.00031786,2]
[403002697,1769041847947,-2000.0,0.000319,2]
[403002698,1769041847957,-900.0,0.000319,11]
[403002699,1769041847966,-150.0,0.00031953,60]
[403002700,1769041847975,-150.0,0.00031953,60]
[403002701,1769041847985,-150.0,0.00031953,60]
[403002702,1769041847994,-150.0,0.00031953,60]
[403002703,1769041848003,-500.0,0.00031953,60]
[403002704,1769041848013,-150.0,0.00031953,60]
[403002705,1769041848022,-500.0,0.00031953,60]
[403002706,1769041848227,-500.0,0.00031953,60]
[403002707,1769041848237,-500.0,0.00031953,60]
[403002708,1769041848248,-150.0,0.00031953,60]
[403002709,1769041848260,-500.0,0.00031953,60]
[403002710,1769041848271,-150.0,0.00032003,2]
[403002711,1769041848280,-150.0,0.00032008,60]
[403002712,1769041848291,-150.0,0.00032008,60]
[403002713,1769041848301,-150.0,0.00032008,60]
[403002714,1769041848310,-500.0,0.00032008,60]
[403002715,1769041848321,-150.0,0.00032008,60]
[403002716,1769041848333,-500.0,0.00032008,60]
[403002717,1769041848342,-500.0,0.00032008,60]
[403002718,1769041848352,-500.0,0.00032008,60]
[403002719,1769041848361,-150.77075567,0.00032008,60]
[403002720,1769041848371,-500.0,0.00032008,60]
[403002721,1769041848380,-150.0,0.00032063,60]
[403002722,1769041848389,-150.0,0.00032063,60]
[403002723,1769041848398,-150.0,0.00032063,60]
[403002724,1769041848407,-500.0,0.00032063,60]
[403002725,1769041848416,-209.71778513,0.00032063,60]
[403002726,1769041848426,-500.0,0.00032063,60]
[403002727,1769041848435,-500.0,0.00032063,60]
[403002728,1769041848444,-325.70575154,0.00032063,60]
[403002729,1769041848453,-384.15160057,0.00032063,60]
[403002730,1769041848462,-2634.24155493,0.00032107,2]
[403002731,1769041848527,-980.21192101,0.00032107,2]
[403002732,1769041848554,-3554.57757357,0.00032107,2]
[403002733,1769041848563,-747.73,0.00032227,120]
[403002734,1769041848572,-386.67372848,0.000323,7]
[403002735,1769041848584,-3124.32627152,0.000323,7]
[403002736,1769041848593,-579.67372848,0.0003281,2]
[403002737,1769041848635,-151.0,0.00018276,2]
[403002738,1769041848644,-1436.635991,0.0003281,2]
[403002739,1769041848655,-521.50544742,0.0003281,2]
[403002740,1769041848670,-404.73403491,0.0003281,2]
[403002741,1769041848721,-98.39083852,0.0003281,2]
[403002742,1769041848730,-308.17,0.000329,14]
[403002743,1769041848739,-156.71,0.000329,14]
[403002744,1769041848748,-201.0,0.00033,30]
[403002745,1769041848757,-169.0,0.00033,14]
[403002746,1769041848766,-381.0,0.00033,14]
[403002747,1769041848775,-1268.0,0.00033093,2]
[403002748,1769041848784,-820.00867761,0.00033093,2]
[403002749,1769041849838,150.85813451,0.000226,120]
[403002750,1769041942169,500.0,0.000176,30]
[403002751,1769041942634,500.0,0.000176,30]
[403002752,1769041943108,500.0,0.00015576,10]
[403002753,1769042074059,355.6408599,0.00016061,2]
[403002754,1769042132963,9144.3691401,0.00016,7]
[403002755,1769042132985,10000.01,0.00016,7]
[403002756,1769042133009,10000.01,0.00016,7]
[403002757,1769042133032,855.6108599,0.00016,7]
[403002758,1769042185379,200.0,0.00016061,2]
[403002759,1769042204343,10000.01,0.00016,7]
[403002760,1769042204366,10000.01,0.00016,7]
[403002761,1769042204388,10000.01,0.00016,7]
[403002762,1769042204413,10000.01,0.00016,7]
[403002763,1769042204436,9999.96,0.00016,7]
[403002764,1769042220614,9000.0,0.00015,2]
[403002765,1769042228740,1000.01,0.00016,2]
[403002766,1769042228995,8999.99,0.00016,2]
[403002767,1769042245525,1000.02,0.00016,2]
[403002768,1769042245550,2499.98,0.00016,2]
[403002776,1769043031472,-454.69711136,0.00016691,2]
[403002777,1769043031484,-220.56860071,0.00016691,2]
[403002778,1769043031495,-454.1716,0.000169,2]
[403002779,1769043031505,-150.00414869,0.000169,2]
[403002780,1769043031515,-624.64,0.000178,2]
[403002781,1769043031525,-1001.5593589,0.00017898,2]
[403002782,1769043031536,-198.4406411,0.00017898,2]
[403002783,1769043031546,-300.0,0.00017898,2]
[403002784,1769043031556,-133.84783563,0.00017899,2]
[403002785,1769043031568,-166.15216437,0.00017899,2]
[403002786,1769043031582,-161.0,0.000179,2]
[403002787,1769043031591,-151.0,0.00017973,2]
[403002788,1769043031601,-491.46765257,0.00017998,2]
[403002789,1769043031612,-58.53234743,0.00017998,2]
[403002790,1769043031623,-500.0,0.00017999,2]
[403002791,1769043031632,-500.0,0.00017999,2]
[403002792,1769043031642,-500.0,0.00017999,2]
[403002793,1769043031652,-545.74415025,0.00017999,2]
[403002794,1769043031662,-500.0,0.00017999,2]
[403002795,1769043031671,-500.0,0.00017999,2]
[403002796,1769043031680,-500.0,0.00017999,2]
[403002797,1769043031690,-500.0,0.00017999,2]
[403002798,1769043031699,-500.0,0.00017999,2]
[403002799,1769043031709,-500.0,0.00017999,2]
[403002800,1769043031718,-500.0,0.00017999,2]
[403002801,1769043031728,-500.0,0.00017999,2]
[403002802,1769043031737,-500.0,0.00017999,2]
[403002803,1769043031747,-891.11,0.00017999,2]
[403002804,1769043031757,-151.0,0.00018065,2]
[403002805,1769043031767,-150.00414869,0.00018207,3]
[403002806,1769043031776,-891.11,0.00018273,2]
[403002807,1769043031785,-195.0,0.0001836,2]
[403002808,1769043031795,-195.0,0.0001836,2]
[403002810,1769043031804,-250.0,0.0001836,2]
[403002812,1769043031814,-891.11,0.00018547,2]
[403002814,1769043031823,-891.11,0.00018821,2]
[403002816,1769043031833,-891.11,0.00019095,2]
[403002818,1769043031843,-891.11,0.00019369,2]
[403002820,1769043031853,-417.48232737,0.00019505,2]
[403002822,1769043031862,-150.00414869,0.00019513,7]
[403002824,1769043031871,-420.0,0.00019531,2]
[403002827,1769043031881,-377.0,0.00019532,2]
[403002830,1769043031891,-553.0,0.000196,2]
[403002833,1769043031900,-1680.0,0.00019627,2]
[403002836,1769043031909,-891.11,0.00019643,2]
[403002839,1769043031918,-891.13,0.00019917,2]
[403002842,1769043031927,-4343.04800873,0.00019994,2]
[403002845,1769043031937,-82.69776114,0.00020035,2]
[403002848,1769043031949,-82.42223886,0.00020035,2]
[403002851,1769043031958,-3585.68912139,0.00020045,2]
[403002873,1769043032129,-771567.06627861,0.00020045,2]
[403002874,1769043032138,-200.0,0.00020094,2]
[403002875,1769043032148,-151.0,0.00020133,2]
[403002876,1769043032158,-151.0,0.00020133,2]
[403002877,1769043032167,-151.0,0.00020133,2]
[403002878,1769043032176,-151.0,0.00020133,2]
[403002879,1769043032185,-151.0,0.00020133,2]
[403002880,1769043032195,-151.0,0.00020133,2]
[403002881,1769043032204,-151.0,0.00020133,2]
[403002882,1769043032214,-286.0113752,0.00020133,2]
[403002883,1769043032223,-500.0,0.00020145,2]
[403002884,1769043032232,-1835.03,0.00020145,2]
[403002885,1769043032242,-3641.87,0.00020145,2]
[403002886,1769043032252,-2424.13,0.00020145,2]
[403002887,1769043032262,-150.53780587,0.00020145,2]
[403002888,1769043032271,-500.0,0.00020419,2]
[403002889,1769043032282,-500.0,0.00020693,2]
[403002890,1769043032292,-150.00414869,0.0002082,11]
[403002891,1769043032302,-500.0,0.00020967,2]
[403002892,1769043032310,-175.0,0.00021312,2]
[403002893,1769043032319,-2351.0,0.00021523,2]
[403002894,1769043032328,-150.00414869,0.00022127,16]
[403002895,1769043032338,-4343.04800865,0.00022541,2]
[403002896,1769043032347,-150.00414869,0.00023434,20]
[403002897,1769043032357,-163.41,0.000236,10]
[403002898,1769043032366,-269.1,0.00024658,2]
[403002899,1769043032376,-150.0,0.00024658,2]
[403002900,1769043032386,-150.00414869,0.0002474,24]
[403002901,1769043032395,-4343.04800865,0.00025087,2]
[403002902,1769043032405,-150.00414869,0.00026047,29]
[403002903,1769043032415,-150.0,0.00026672,2]
[403002904,1769043032424,-717.1,0.00026888,2]
[403002905,1769043032434,-161.0,0.00027,20]
[403002906,1769043032443,-150.0,0.00027123,2]
[403002907,1769043032454,-200.0,0.00027141,2]
[403002908,1769043032464,-255.18,0.00027228,2]
[403002909,1769043032475,-311.0,0.00027397,2]
[403002910,1769043032487,-154.13,0.00027418,91]
[403002911,1769043032497,-2000.0,0.000279,2]
[403002912,1769043032508,-269.1,0.00027985,2]
[403002913,1769043032518,-717.1,0.00028233,2]
[403002914,1769043032527,-150.00414869,0.00028661,36]
[403002915,1769043032538,-255.18,0.00028741,2]
[403002916,1769043032547,-164.09,0.00028767,120]
[403002917,1769043032557,-161.0,0.000289,20]
[403002918,1769043032566,-717.1,0.00029577,2]
[403002919,1769043032579,-200.0,0.00029725,2]
[403002920,1769043032588,-152.0,0.00029924,3]
[403002921,1769043032598,-150.00414869,0.00029967,40]
[403002922,1769043032607,-255.18,0.00030254,2]
[403002923,1769043032619,-717.1,0.00030922,2]
[403002924,1769043032628,-631.46,0.00031246,2]
[403002925,1769043032637,-150.00414869,0.00031274,44]
[403002926,1769043032648,-269.1,0.00031313,2]
[403002927,1769043032657,-164.09,0.00031507,120]
[403002928,1769043032667,-2000.0,0.000316,2]
[403002929,1769043032677,-500.0,0.00031604,60]
[403002930,1769043032687,-500.0,0.00031604,60]
[403002931,1769043032696,-500.0,0.00031604,30]
[403002932,1769043032705,-500.0,0.00031604,60]
[403002933,1769043032714,-500.0,0.00031604,60]
[403002934,1769043032724,-500.0,0.00031604,60]
[403002935,1769043032733,-500.0,0.00031604,60]
[403002936,1769043032742,-500.0,0.00031604,60]
[403002937,1769043032751,-500.0,0.00031604,45]
[403002938,1769043032761,-500.0,0.00031604,60]
[403002939,1769043032771,-500.0,0.00031604,60]
[403002940,1769043032784,-500.0,0.00031604,60]
[403002941,1769043032953,-500.0,0.00031604,60]
[403002942,1769043032963,-500.0,0.00031604,60]
[403002943,1769043032972,-500.0,0.00031604,60]
[403002944,1769043032981,-500.0,0.00031604,20]
[403002945,1769043032991,-255.18,0.00031766,2]
[403002946,1769043033000,-150.0,0.00031788,60]
[403002947,1769043033010,-500.0,0.00031788,60]
[403002948,1769043033019,-500.0,0.00031788,60]
[403002949,1769043033028,-500.0,0.00031788,7]
[403002950,1769043033037,-150.0,0.00031788,60]
[403002951,1769043033047,-500.0,0.00031788,60]
[403002952,1769043033055,-150.0,0.00031788,2]
[403002953,1769043033065,-500.0,0.00031788,60]
[403002954,1769043033074,-200.0,0.00031788,60]
[403002955,1769043033083,-150.0,0.00031788,60]
[403002956,1769043033093,-500.0,0.00031788,60]
[403002957,1769043033103,-150.0,0.00031788,2]
[403002958,1769043033112,-150.0,0.00031788,2]
[403002959,1769043033121,-150.0,0.00031788,60]
[403002960,1769043033130,-150.0,0.00031788,60]
[403002961,1769043033139,-250.0,0.00031843,60]
[403002962,1769043033149,-500.0,0.00031843,60]
[403002963,1769043033158,-571.24421117,0.00031843,60]
[403002964,1769043033167,-154.23631951,0.00031843,60]
[403002965,1769043033176,-500.0,0.00031843,60]
[403002966,1769043033185,-500.0,0.00031843,60]
[403002967,1769043033195,-200.0,0.00031843,60]
[403002968,1769043033204,-500.0,0.00031843,60]
[403002969,1769043033213,-150.0,0.00031843,2]
[403002970,1769043033223,-150.0,0.00031843,60]
[403002971,1769043033232,-152.0,0.00031871,4]
[403002972,1769043033241,-500.0,0.00031898,60]
[403002973,1769043033251,-500.0,0.00031898,60]
[403002974,1769043033261,-205.39376385,0.00031898,60]
[403002975,1769043033270,-500.0,0.00031898,60]
[403002976,1769043033280,-150.0,0.00031898,60]
[403002977,1769043033289,-394.09500415,0.00031952,60]